[Event "Live Chess"]
[Site "Chess.com"]
[Date "2023.05.21"]
[Round "-"]
[White "Hussamalhaidar"]
[Black "ProfPoisson"]
[Result "0-1"]
[WhiteElo "1145"]
[BlackElo "1225"]
[TimeControl "300"]
[EndTime "7:37:44 PDT"]
[Termination "ProfPoisson won by resignation"]

1. b3 {[%clk 0:04:56.4]} 1... e5 {[%clk 0:04:54.5]} 2. Bb2 {[%clk 0:04:55.7]}
2... Nc6 {[%clk 0:04:52]} 3. e3 {[%clk 0:04:53]} 3... d5 {[%clk 0:04:51.3]} 4.
Bb5 {[%clk 0:04:50.5]} 4... Bd6 {[%clk 0:04:43.6]} 5. d4 {[%clk 0:04:39.3]} 5...
Bd7 {[%clk 0:04:34.3]} 6. c4 {[%clk 0:04:37]} 6... dxc4 {[%clk 0:04:23.9]} 7.
Bxc6 {[%clk 0:04:13.4]} 7... Bxc6 {[%clk 0:04:20.8]} 8. dxe5 {[%clk 0:04:07.7]}
8... Bb4+ {[%clk 0:04:18.2]} 9. Nd2 {[%clk 0:03:43.9]} 9... c3 {[%clk
0:04:04.8]} 10. g4 {[%clk 0:03:31.4]} 10... cxd2+ {[%clk 0:03:57.8]} 11. Kf1
{[%clk 0:03:25.4]} 11... Qd3+ {[%clk 0:03:52.2]} 12. Qe2 {[%clk 0:03:20.9]}
12... Bg2+ {[%clk 0:03:46.9]} 13. Kxg2 {[%clk 0:03:18.1]} 13... Qxe2 {[%clk
0:03:33.2]} 14. Nxe2 {[%clk 0:03:15.8]} 14... Rd8 {[%clk 0:03:28]} 15. Rhd1
{[%clk 0:03:10.5]} 15... Nh6 {[%clk 0:03:22.9]} 16. e6 {[%clk 0:03:05.1]} 16...
Nxg4 {[%clk 0:03:10]} 17. Bxg7 {[%clk 0:02:54.7]} 17... Rg8 {[%clk 0:03:06]} 18.
exf7+ {[%clk 0:02:43.2]} 18... Kxf7 {[%clk 0:03:01.6]} 19. Bc3 {[%clk
0:02:37.2]} 19... Nxe3+ {[%clk 0:02:58.2]} 20. Kf3 {[%clk 0:02:28.5]} 20... Nxd1
{[%clk 0:02:56.2]} 21. Rxd1 {[%clk 0:02:25]} 21... Bxc3 {[%clk 0:02:53]} 22.
Nxc3 {[%clk 0:02:23.1]} 22... Rd3+ {[%clk 0:02:48.5]} 23. Ke2 {[%clk 0:02:17.3]}
23... Rxc3 {[%clk 0:02:46.9]} 24. Rxd2 {[%clk 0:02:15.5]} 24... Rg2 {[%clk
0:02:40.8]} 25. Rd7+ {[%clk 0:02:12.6]} 25... Ke6 {[%clk 0:02:37.8]} 26. Rxh7
{[%clk 0:02:09.5]} 26... Rc2+ {[%clk 0:02:35.9]} 27. Kf3 {[%clk 0:02:03.1]}
27... Rcxf2+ {[%clk 0:02:30.5]} 28. Ke3 {[%clk 0:01:59.9]} 28... Rxh2 {[%clk
0:02:28.4]} 29. Rxc7 {[%clk 0:01:53.6]} 29... Rxa2 {[%clk 0:02:23.8]} 30. Rxb7
{[%clk 0:01:50]} 30... Ra3 {[%clk 0:02:17.2]} 31. Rb8 {[%clk 0:01:44.8]} 31...
Rh3+ {[%clk 0:02:12.5]} 32. Kd4 {[%clk 0:01:42.3]} 32... Raxb3 {[%clk
0:02:09.9]} 33. Re8+ {[%clk 0:01:39.7]} 33... Kd7 {[%clk 0:02:07.2]} 34. Rg8
{[%clk 0:01:37.1]} 34... Rh4+ {[%clk 0:02:03.9]} 35. Ke5 {[%clk 0:01:32.9]}
35... Rb5+ {[%clk 0:02:02.2]} 36. Kf6 {[%clk 0:01:29.1]} 36... Rh6+ {[%clk
0:01:58.5]} 37. Kg7 {[%clk 0:01:21.1]} 37... Rbb6 {[%clk 0:01:52.5]} 38. Ra8
{[%clk 0:01:16.2]} 38... Rbg6+ {[%clk 0:01:50.5]} 39. Kf7 {[%clk 0:01:13.6]}
39... Kc6 {[%clk 0:01:39.9]} 40. Rxa7 {[%clk 0:01:10.1]} 40... Kb6 {[%clk
0:01:38.3]} 41. Ra8 {[%clk 0:01:02.4]} 41... Rc6 {[%clk 0:01:36.5]} 42. Rb8+
{[%clk 0:00:57.5]} 42... Ka7 {[%clk 0:01:33.6]} 43. Rb1 {[%clk 0:00:50.2]} 43...
Rh7+ {[%clk 0:01:30.7]} 44. Kg8 {[%clk 0:00:47]} 44... Rb7 {[%clk 0:01:29.1]}
45. Ra1+ {[%clk 0:00:43.7]} 45... Kb8 {[%clk 0:01:25.5]} 46. Rf1 {[%clk
0:00:33.6]} 46... Rc8+ {[%clk 0:01:23.9]} 47. Rf8 {[%clk 0:00:31]} 47... Rxf8+
{[%clk 0:01:22.4]} 48. Kxf8 {[%clk 0:00:30.1]} 48... Ka7 {[%clk 0:01:20.8]} 0-1

[Event "Live Chess"]
[Site "Chess.com"]
[Date "2023.05.21"]
[Round "-"]
[White "CheckThis4"]
[Black "ossie57"]
[Result "1-0"]
[WhiteElo "2528"]
[BlackElo "1836"]
[TimeControl "300"]
[EndTime "7:37:46 PDT"]
[Termination "CheckThis4 won by resignation"]

1. d4 {[%clk 0:04:58.5]} 1... Nf6 {[%clk 0:04:57.7]} 2. Nc3 {[%clk 0:04:58.4]}
2... g6 {[%clk 0:04:57.1]} 3. e4 {[%clk 0:04:52.9]} 3... d6 {[%clk 0:04:56]} 4.
Be3 {[%clk 0:04:51.3]} 4... Bg7 {[%clk 0:04:55.5]} 5. Qd2 {[%clk 0:04:50.8]}
5... h5 {[%clk 0:04:54.1]} 6. h3 {[%clk 0:04:46.6]} 6... c6 {[%clk 0:04:39.2]}
7. f4 {[%clk 0:04:44.9]} 7... Bh6 {[%clk 0:04:07.8]} 8. Nf3 {[%clk 0:04:42]}
8... O-O {[%clk 0:04:00.4]} 9. e5 {[%clk 0:04:40.7]} 9... Nh7 {[%clk 0:03:56.4]}
10. O-O-O {[%clk 0:04:37.4]} 10... d5 {[%clk 0:03:53.1]} 11. g4 {[%clk
0:04:35.6]} 11... hxg4 {[%clk 0:03:39.3]} 12. hxg4 {[%clk 0:04:35.5]} 12... Bxg4
{[%clk 0:03:37.5]} 13. Rxh6 {[%clk 0:04:30.7]} 13... Bxf3 {[%clk 0:03:36.5]} 14.
Be2 {[%clk 0:04:15.4]} 14... Kg7 {[%clk 0:03:27.1]} 15. Rxh7+ {[%clk 0:04:10.9]}
15... Kxh7 {[%clk 0:03:26.1]} 16. Bxf3 {[%clk 0:04:10.5]} 16... Kg7 {[%clk
0:03:24.6]} 17. f5 {[%clk 0:04:09.2]} 17... f6 {[%clk 0:03:20.4]} 18. Bh6+
{[%clk 0:04:06.8]} 18... Kf7 {[%clk 0:03:18.4]} 19. fxg6+ {[%clk 0:04:05.7]}
19... Kxg6 {[%clk 0:03:16.5]} 20. Rg1+ {[%clk 0:04:04.4]} 20... Kf7 {[%clk
0:03:13.6]} 21. Bh5+ {[%clk 0:04:03.4]} 21... Ke6 {[%clk 0:03:12.9]} 22. Bxf8
{[%clk 0:03:52.8]} 22... Qxf8 {[%clk 0:03:12.8]} 23. Qf4 {[%clk 0:03:50.5]}
23... Kd7 {[%clk 0:03:03.8]} 24. exf6 {[%clk 0:03:44.7]} 1-0

[Event "Live Chess"]
[Site "Chess.com"]
[Date "2023.05.21"]
[Round "-"]
[White "Ian-Morley"]
[Black "Conradical12"]
[Result "0-1"]
[WhiteElo "1089"]
[BlackElo "1534"]
[TimeControl "300"]
[EndTime "7:37:47 PDT"]
[Termination "Conradical12 won by checkmate"]

1. e4 {[%clk 0:04:58.6]} 1... e5 {[%clk 0:04:55.7]} 2. Nf3 {[%clk 0:04:57.3]}
2... Nc6 {[%clk 0:04:54.7]} 3. Bc4 {[%clk 0:04:55.7]} 3... Nf6 {[%clk
0:04:54.1]} 4. Ng5 {[%clk 0:04:54.3]} 4... d5 {[%clk 0:04:50.8]} 5. exd5 {[%clk
0:04:53.4]} 5... Na5 {[%clk 0:04:49.9]} 6. Bb5+ {[%clk 0:04:52.4]} 6... c6
{[%clk 0:04:49.5]} 7. dxc6 {[%clk 0:04:52.1]} 7... bxc6 {[%clk 0:04:48.9]} 8.
Bxc6+ {[%clk 0:04:51.8]} 8... Nxc6 {[%clk 0:04:46.6]} 9. Qf3 {[%clk 0:04:50.6]}
9... Bd7 {[%clk 0:04:43.9]} 10. Ne4 {[%clk 0:04:46]} 10... Nxe4 {[%clk
0:04:41.4]} 11. Qxe4 {[%clk 0:04:45.1]} 11... Bd6 {[%clk 0:04:40.4]} 12. Nc3
{[%clk 0:04:40.3]} 12... O-O {[%clk 0:04:37.9]} 13. Nd5 {[%clk 0:04:39.1]} 13...
f5 {[%clk 0:04:35.3]} 14. Qe3 {[%clk 0:04:34.8]} 14... Nd4 {[%clk 0:04:32.3]}
15. c3 {[%clk 0:04:33.4]} 15... Nc2+ {[%clk 0:04:30.6]} 16. Ke2 {[%clk
0:04:31.3]} 16... Nxe3 {[%clk 0:04:30.5]} 17. Nxe3 {[%clk 0:04:30.6]} 17... f4
{[%clk 0:04:29.5]} 18. Nd5 {[%clk 0:04:29.3]} 18... Bb5+ {[%clk 0:04:28.5]} 19.
d3 {[%clk 0:04:28.1]} 19... Bc5 {[%clk 0:04:25.6]} 20. c4 {[%clk 0:04:26.8]}
20... e4 {[%clk 0:04:23]} 21. cxb5 {[%clk 0:04:25.5]} 21... exd3+ {[%clk
0:04:21.4]} 22. Kxd3 {[%clk 0:04:24.5]} 22... Qxd5+ {[%clk 0:04:20.5]} 23. Kc3
{[%clk 0:04:23.6]} 23... Qd4+ {[%clk 0:04:19.4]} 24. Kb3 {[%clk 0:04:22.9]}
24... Qb4+ {[%clk 0:04:19.3]} 25. Kc2 {[%clk 0:04:21.6]} 25... Rac8 {[%clk
0:04:14.2]} 26. a3 {[%clk 0:04:21]} 26... Qe4+ {[%clk 0:04:12.4]} 27. Kb3 {[%clk
0:04:16.4]} 27... Qd3+ {[%clk 0:04:11.9]} 28. Ka2 {[%clk 0:04:15.6]} 28... Bd4
{[%clk 0:04:11.2]} 29. Bxf4 {[%clk 0:04:10.8]} 29... Qc4+ {[%clk 0:04:10.2]} 30.
b3 {[%clk 0:04:09.6]} 30... Qc2# {[%clk 0:04:09.3]} 0-1

[Event "Live Chess"]
[Site "Chess.com"]
[Date "2023.05.21"]
[Round "-"]
[White "garyjc"]
[Black "Tushinskiy"]
[Result "1-0"]
[WhiteElo "1065"]
[BlackElo "2186"]
[TimeControl "300"]
[EndTime "7:37:53 PDT"]
[Termination "garyjc won on time"]

1. e4 {[%clk 0:04:57.4]} 1... e5 {[%clk 0:04:57.4]} 2. Nf3 {[%clk 0:04:55.2]}
2... d6 {[%clk 0:04:56.4]} 3. d4 {[%clk 0:04:52]} 3... Bg4 {[%clk 0:04:51.3]} 4.
Be2 {[%clk 0:04:47.3]} 4... Nd7 {[%clk 0:04:50.4]} 5. h3 {[%clk 0:04:35.3]} 5...
Bh5 {[%clk 0:04:48.7]} 6. Nc3 {[%clk 0:04:25.7]} 6... Ngf6 {[%clk 0:04:44.3]} 7.
dxe5 {[%clk 0:04:06.2]} 7... dxe5 {[%clk 0:04:43.1]} 8. Nd5 {[%clk 0:03:54.2]}
8... c6 {[%clk 0:04:43]} 9. Nxf6+ {[%clk 0:03:48]} 9... Qxf6 {[%clk 0:04:37.2]}
10. Be3 {[%clk 0:03:33.6]} 10... O-O-O {[%clk 0:04:30.5]} 11. O-O {[%clk
0:03:26.1]} 11... Bc5 {[%clk 0:04:27.1]} 12. Qe1 {[%clk 0:03:19.8]} 12... h6
{[%clk 0:04:23]} 13. a3 {[%clk 0:02:59.6]} 13... g5 {[%clk 0:03:54]} 14. b4
{[%clk 0:02:57.7]} 14... Bxe3 {[%clk 0:03:34.4]} 15. fxe3 {[%clk 0:02:55.1]} 1-0

[Event "Live Chess"]
[Site "Chess.com"]
[Date "2023.05.21"]
[Round "-"]
[White "chessfiction"]
[Black "whatnot126"]
[Result "0-1"]
[WhiteElo "2298"]
[BlackElo "2066"]
[TimeControl "300"]
[EndTime "7:38:05 PDT"]
[Termination "whatnot126 won by resignation"]

1. e4 {[%clk 0:04:57.7]} 1... d6 {[%clk 0:04:59.3]} 2. d4 {[%clk 0:04:56.1]}
2... Nf6 {[%clk 0:04:57]} 3. Nc3 {[%clk 0:04:55.7]} 3... g6 {[%clk 0:04:56.3]}
4. f4 {[%clk 0:04:54.8]} 4... Bg7 {[%clk 0:04:55.7]} 5. h3 {[%clk 0:04:53.6]}
5... O-O {[%clk 0:04:44.1]} 6. Be3 {[%clk 0:04:50.8]} 6... c5 {[%clk 0:04:42.9]}
7. dxc5 {[%clk 0:04:46.4]} 7... Qa5 {[%clk 0:04:42.3]} 8. Qd2 {[%clk 0:04:35.7]}
8... Rd8 {[%clk 0:04:36]} 9. O-O-O {[%clk 0:04:32.1]} 9... Nc6 {[%clk
0:04:35.7]} 10. Kb1 {[%clk 0:04:12.5]} 10... dxc5 {[%clk 0:04:33.5]} 11. Qc1
{[%clk 0:04:08.9]} 11... Be6 {[%clk 0:04:23.9]} 12. e5 {[%clk 0:03:55]} 12...
Ne4 {[%clk 0:04:14.9]} 13. Nge2 {[%clk 0:03:36.6]} 13... b5 {[%clk 0:03:41.7]}
14. a3 {[%clk 0:03:28.3]} 14... Nxc3+ {[%clk 0:03:30.4]} 15. Nxc3 {[%clk
0:03:28.2]} 15... b4 {[%clk 0:03:29.7]} 16. Na2 {[%clk 0:03:07.8]} 16... bxa3
{[%clk 0:03:15.9]} 17. Rxd8+ {[%clk 0:02:53.2]} 17... Rxd8 {[%clk 0:03:14.4]}
18. bxa3 {[%clk 0:02:51.7]} 18... Nb4 {[%clk 0:02:11.2]} 19. Nc3 {[%clk
0:02:35.7]} 19... Rb8 {[%clk 0:02:02.5]} 20. Nb5 {[%clk 0:02:21.4]} 20... Na2
{[%clk 0:01:46.6]} 21. Qb2 {[%clk 0:02:15.4]} 21... a6 {[%clk 0:01:43.2]} 22. a4
{[%clk 0:01:57.3]} 22... axb5 {[%clk 0:01:37.9]} 23. Bxb5 {[%clk 0:01:53.3]}
23... Nc3+ {[%clk 0:01:36.3]} 24. Kc1 {[%clk 0:01:34.8]} 24... Nxb5 {[%clk
0:01:32.8]} 25. axb5 {[%clk 0:01:33.9]} 25... Rxb5 {[%clk 0:01:32.7]} 26. Bd2
{[%clk 0:01:30.7]} 26... Qxd2+ {[%clk 0:01:27.2]} 27. Kxd2 {[%clk 0:01:29.1]}
27... Rxb2 {[%clk 0:01:26.5]} 28. Ra1 {[%clk 0:01:27.6]} 28... Bh6 {[%clk
0:01:23.7]} 29. g3 {[%clk 0:01:25.7]} 29... Bf5 {[%clk 0:01:19.9]} 30. Ra8+
{[%clk 0:01:21.5]} 30... Kg7 {[%clk 0:01:18.9]} 31. Rb8 {[%clk 0:01:20.3]} 31...
Rxc2+ {[%clk 0:01:12.2]} 32. Ke3 {[%clk 0:01:18.8]} 32... Rc3+ {[%clk
0:01:11.1]} 33. Kf2 {[%clk 0:01:17.4]} 33... Be4 {[%clk 0:01:09]} 34. g4 {[%clk
0:01:16.1]} 34... Bxf4 {[%clk 0:01:07.5]} 0-1

[Event "Live Chess"]
[Site "Chess.com"]
[Date "2023.05.21"]
[Round "-"]
[White "onemoretime1975"]
[Black "LaupMiths"]
[Result "1-0"]
[WhiteElo "1849"]
[BlackElo "1820"]
[TimeControl "300"]
[EndTime "7:38:38 PDT"]
[Termination "onemoretime1975 won by resignation"]

1. e4 {[%clk 0:04:57.1]} 1... c5 {[%clk 0:04:58.7]} 2. Nf3 {[%clk 0:04:55.5]}
2... e6 {[%clk 0:04:56.5]} 3. g3 {[%clk 0:04:50.8]} 3... Nc6 {[%clk 0:04:54.1]}
4. d3 {[%clk 0:04:48.4]} 4... g6 {[%clk 0:04:51.3]} 5. Bg2 {[%clk 0:04:47.2]}
5... Bg7 {[%clk 0:04:49.7]} 6. c3 {[%clk 0:04:45.6]} 6... Nge7 {[%clk
0:04:48.3]} 7. O-O {[%clk 0:04:43.8]} 7... O-O {[%clk 0:04:46.9]} 8. a3 {[%clk
0:04:36]} 8... d5 {[%clk 0:04:45.7]} 9. exd5 {[%clk 0:04:33.9]} 9... exd5 {[%clk
0:04:41.8]} 10. d4 {[%clk 0:04:32]} 10... Bg4 {[%clk 0:04:30.4]} 11. dxc5 {[%clk
0:04:22.4]} 11... d4 {[%clk 0:04:28.8]} 12. h3 {[%clk 0:04:10.6]} 12... Bxf3
{[%clk 0:04:14.2]} 13. Bxf3 {[%clk 0:04:08.5]} 13... Nf5 {[%clk 0:04:05.1]} 14.
Bxc6 {[%clk 0:03:39.4]} 14... bxc6 {[%clk 0:04:02.1]} 15. cxd4 {[%clk
0:03:37.2]} 15... Bxd4 {[%clk 0:03:53.2]} 16. Nc3 {[%clk 0:03:34.3]} 16... Nxg3
{[%clk 0:03:40.7]} 17. Re1 {[%clk 0:03:28.8]} 17... Qh4 {[%clk 0:03:26.9]} 18.
Kg2 {[%clk 0:03:24.3]} 18... Nh5 {[%clk 0:03:21.2]} 19. Qf3 {[%clk 0:03:14.7]}
19... Rae8 {[%clk 0:03:08.9]} 20. Bh6 {[%clk 0:02:59.3]} 20... Rxe1 {[%clk
0:02:44]} 21. Rxe1 {[%clk 0:02:56.2]} 21... Rb8 {[%clk 0:02:43.4]} 22. Re4
{[%clk 0:02:36.5]} 22... Nf4+ {[%clk 0:02:29.6]} 23. Bxf4 {[%clk 0:02:26.3]} 1-0

[Event "Live Chess"]
[Site "Chess.com"]
[Date "2023.05.21"]
[Round "-"]
[White "Singapourfeuj"]
[Black "LL220284LL"]
[Result "1-0"]
[WhiteElo "2194"]
[BlackElo "2232"]
[TimeControl "300"]
[EndTime "7:38:41 PDT"]
[Termination "Singapourfeuj won by resignation"]

1. d4 {[%clk 0:04:58.8]} 1... Nf6 {[%clk 0:04:57.8]} 2. Nf3 {[%clk 0:04:56.7]}
2... e6 {[%clk 0:04:57.3]} 3. c4 {[%clk 0:04:54.9]} 3... Bb4+ {[%clk 0:04:56.7]}
4. Nbd2 {[%clk 0:04:52.6]} 4... d5 {[%clk 0:04:54.6]} 5. a3 {[%clk 0:04:51.8]}
5... Bxd2+ {[%clk 0:04:52.7]} 6. Bxd2 {[%clk 0:04:51]} 6... b6 {[%clk
0:04:52.3]} 7. cxd5 {[%clk 0:04:49.5]} 7... Nxd5 {[%clk 0:04:49.8]} 8. e4 {[%clk
0:04:48]} 8... Nf6 {[%clk 0:04:49]} 9. Bd3 {[%clk 0:04:46.2]} 9... O-O {[%clk
0:04:48.1]} 10. Qe2 {[%clk 0:04:45.2]} 10... Bb7 {[%clk 0:04:46.7]} 11. Bg5
{[%clk 0:04:43.8]} 11... h6 {[%clk 0:04:45.3]} 12. Bh4 {[%clk 0:04:42.4]} 12...
g5 {[%clk 0:04:43.6]} 13. Bg3 {[%clk 0:04:41.4]} 13... Nbd7 {[%clk 0:04:42.8]}
14. h4 {[%clk 0:04:40.1]} 14... g4 {[%clk 0:04:42]} 15. Ne5 {[%clk 0:04:38.9]}
15... h5 {[%clk 0:04:38.2]} 16. Rc1 {[%clk 0:04:37.7]} 16... c5 {[%clk 0:04:37]}
17. Qe3 {[%clk 0:04:31.6]} 17... Nh7 {[%clk 0:04:24.1]} 18. O-O {[%clk 0:04:17]}
18... Nxe5 {[%clk 0:04:19.8]} 19. dxe5 {[%clk 0:04:15.1]} 19... Qe7 {[%clk
0:04:15.5]} 20. Qh6 {[%clk 0:04:11.7]} 20... Rfd8 {[%clk 0:04:12.3]} 21. Bb1
{[%clk 0:04:08.9]} 21... Rd4 {[%clk 0:04:09.1]} 22. Qxh5 {[%clk 0:04:07.4]}
22... Rad8 {[%clk 0:03:55.8]} 23. Qxg4+ {[%clk 0:04:05.6]} 23... Kh8 {[%clk
0:03:54.9]} 24. h5 {[%clk 0:04:02.3]} 24... Rg8 {[%clk 0:03:52.4]} 25. Qf4
{[%clk 0:03:55.9]} 25... Ng5 {[%clk 0:03:42.3]} 26. f3 {[%clk 0:03:48.1]} 26...
Qd8 {[%clk 0:03:32.3]} 27. Qf6+ {[%clk 0:03:43.4]} 27... Qxf6 {[%clk 0:03:30.8]}
28. exf6 {[%clk 0:03:42.3]} 28... Rd2 {[%clk 0:03:25.1]} 29. b4 {[%clk
0:03:13.7]} 29... Nxe4 {[%clk 0:03:12.8]} 30. Bxe4 {[%clk 0:03:09.7]} 30... Bxe4
{[%clk 0:03:07.2]} 31. fxe4 {[%clk 0:02:59.8]} 31... Rxg3 {[%clk 0:03:05.5]} 32.
Rf2 {[%clk 0:02:58.7]} 32... Rxf2 {[%clk 0:03:04.9]} 33. Kxf2 {[%clk 0:02:57.2]}
33... Rxa3 {[%clk 0:03:04.5]} 34. bxc5 {[%clk 0:02:54.7]} 34... bxc5 {[%clk
0:03:04]} 35. Rxc5 {[%clk 0:02:52.5]} 35... Kh7 {[%clk 0:02:56.5]} 36. Rc7
{[%clk 0:02:51.2]} 36... Kh6 {[%clk 0:02:55.3]} 37. Rxf7 {[%clk 0:02:48.2]}
37... Kxh5 {[%clk 0:02:54.7]} 38. Rg7 {[%clk 0:02:44.9]} 38... Kh6 {[%clk
0:02:50.1]} 39. Rg3 {[%clk 0:02:38.3]} 39... Ra2+ {[%clk 0:02:47.3]} 40. Kf3
{[%clk 0:02:36.8]} 40... Ra1 {[%clk 0:02:43.7]} 41. Kf4 {[%clk 0:02:33.7]} 41...
Rf1+ {[%clk 0:02:39.7]} 42. Rf3 {[%clk 0:02:31.3]} 42... Rxf3+ {[%clk
0:02:37.7]} 43. gxf3 {[%clk 0:02:30.3]} 43... a5 {[%clk 0:02:35.2]} 44. Ke5
{[%clk 0:02:29.4]} 44... a4 {[%clk 0:02:34.1]} 45. Kxe6 {[%clk 0:02:27.7]} 45...
a3 {[%clk 0:02:33.2]} 46. f7 {[%clk 0:02:26.9]} 46... Kg7 {[%clk 0:02:27.7]} 47.
Ke7 {[%clk 0:02:25]} 47... a2 {[%clk 0:02:27.6]} 1-0

[Event "Live Chess"]
[Site "Chess.com"]
[Date "2023.05.21"]
[Round "-"]
[White "PantherCal"]
[Black "MarkLim1"]
[Result "0-1"]
[WhiteElo "1861"]
[BlackElo "1717"]
[TimeControl "300"]
[EndTime "7:38:45 PDT"]
[Termination "MarkLim1 won by resignation"]

1. e4 {[%clk 0:04:58.8]} 1... c6 {[%clk 0:04:58.1]} 2. d4 {[%clk 0:04:57.2]}
2... d5 {[%clk 0:04:57.4]} 3. e5 {[%clk 0:04:56.9]} 3... c5 {[%clk 0:04:56.4]}
4. dxc5 {[%clk 0:04:56.1]} 4... Nc6 {[%clk 0:04:55.8]} 5. Nf3 {[%clk 0:04:55.5]}
5... Bg4 {[%clk 0:04:54.6]} 6. Bf4 {[%clk 0:04:51.7]} 6... e6 {[%clk 0:04:53.1]}
7. Be2 {[%clk 0:04:50.7]} 7... Bxc5 {[%clk 0:04:50.2]} 8. a3 {[%clk 0:04:48.4]}
8... a6 {[%clk 0:04:48.3]} 9. b4 {[%clk 0:04:47]} 9... Ba7 {[%clk 0:04:46.7]}
10. Nbd2 {[%clk 0:04:45.1]} 10... Nge7 {[%clk 0:04:45.4]} 11. O-O {[%clk
0:04:43.7]} 11... Ng6 {[%clk 0:04:44.3]} 12. Bg3 {[%clk 0:04:40.9]} 12... O-O
{[%clk 0:04:41.6]} 13. Re1 {[%clk 0:04:39.9]} 13... Rc8 {[%clk 0:04:34.3]} 14.
h3 {[%clk 0:04:36.8]} 14... Bxf3 {[%clk 0:04:24.1]} 15. Nxf3 {[%clk 0:04:36.7]}
15... Qc7 {[%clk 0:04:23]} 16. Bf1 {[%clk 0:04:30]} 16... Rfd8 {[%clk
0:04:18.6]} 17. Rc1 {[%clk 0:04:28.1]} 17... Qb6 {[%clk 0:04:12.2]} 18. Bd3
{[%clk 0:04:17.1]} 18... Nd4 {[%clk 0:04:01.2]} 19. Nxd4 {[%clk 0:04:12.8]}
19... Qxd4 {[%clk 0:03:59]} 20. Qf3 {[%clk 0:04:07.2]} 20... Rc3 {[%clk
0:03:48.6]} 21. Ra1 {[%clk 0:03:47.2]} 21... Rdc8 {[%clk 0:03:39.4]} 22. h4
{[%clk 0:03:45.1]} 22... Nxh4 {[%clk 0:03:32.1]} 23. Bxh7+ {[%clk 0:03:22.9]}
23... Kxh7 {[%clk 0:03:30.7]} 24. Qh5+ {[%clk 0:03:22.1]} 24... Kg8 {[%clk
0:03:27.9]} 25. Bxh4 {[%clk 0:03:11.6]} 25... Rxc2 {[%clk 0:03:25.4]} 26. Re3
{[%clk 0:03:06.4]} 26... Rc1+ {[%clk 0:03:12.8]} 27. Rxc1 {[%clk 0:03:04.6]}
27... Rxc1+ {[%clk 0:03:11.5]} 28. Kh2 {[%clk 0:03:04.2]} 28... Qf4+ {[%clk
0:03:07.8]} 29. Rg3 {[%clk 0:02:16.2]} 29... Bxf2 {[%clk 0:03:04]} 0-1

[Event "Live Chess"]
[Site "Chess.com"]
[Date "2023.05.21"]
[Round "-"]
[White "Pablo_dmp"]
[Black "RichardABates"]
[Result "0-1"]
[WhiteElo "1862"]
[BlackElo "2149"]
[TimeControl "300"]
[EndTime "7:38:50 PDT"]
[Termination "RichardABates won by resignation"]

1. e4 {[%clk 0:04:59.1]} 1... c5 {[%clk 0:04:58.6]} 2. a3 {[%clk 0:04:58]} 2...
d5 {[%clk 0:04:55.7]} 3. exd5 {[%clk 0:04:56.3]} 3... Nf6 {[%clk 0:04:54.6]} 4.
c4 {[%clk 0:04:50.1]} 4... e6 {[%clk 0:04:52.9]} 5. dxe6 {[%clk 0:04:45.6]} 5...
Bxe6 {[%clk 0:04:51]} 6. Nf3 {[%clk 0:04:43.1]} 6... Nc6 {[%clk 0:04:49.6]} 7.
Nc3 {[%clk 0:04:40.8]} 7... Bd6 {[%clk 0:04:43.6]} 8. Be2 {[%clk 0:04:38.7]}
8... O-O {[%clk 0:04:40.9]} 9. Nb5 {[%clk 0:04:26]} 9... Bb8 {[%clk 0:04:36.3]}
10. d4 {[%clk 0:04:24.2]} 10... a6 {[%clk 0:04:22.9]} 11. d5 {[%clk 0:04:23.3]}
11... axb5 {[%clk 0:04:20.6]} 12. dxe6 {[%clk 0:04:21.4]} 12... fxe6 {[%clk
0:04:17.7]} 13. Qxd8 {[%clk 0:04:16.3]} 13... Rxd8 {[%clk 0:04:11.6]} 14. cxb5
{[%clk 0:04:16.2]} 14... Nd4 {[%clk 0:04:05.9]} 15. Nxd4 {[%clk 0:04:07.1]}
15... cxd4 {[%clk 0:04:04.6]} 16. Bg5 {[%clk 0:04:02.9]} 16... d3 {[%clk
0:03:58.8]} 17. Bf3 {[%clk 0:04:00.4]} 17... Be5 {[%clk 0:03:57.1]} 18. O-O
{[%clk 0:03:54.7]} 18... Rd7 {[%clk 0:03:50.6]} 19. Ra2 {[%clk 0:03:50.8]} 19...
Rc8 {[%clk 0:03:34.1]} 20. b4 {[%clk 0:03:44.5]} 20... h6 {[%clk 0:03:19.4]} 21.
Be3 {[%clk 0:03:41]} 21... g5 {[%clk 0:03:12.3]} 22. Rd1 {[%clk 0:03:26.3]}
22... g4 {[%clk 0:03:09.8]} 23. Bxh6 {[%clk 0:03:09.1]} 23... gxf3 {[%clk
0:03:06.3]} 24. gxf3 {[%clk 0:03:04.2]} 24... Kh7 {[%clk 0:02:58.9]} 25. Bg5
{[%clk 0:03:00.6]} 25... Rg8 {[%clk 0:02:55.4]} 26. h4 {[%clk 0:02:59.4]} 26...
Bf4 {[%clk 0:02:52.4]} 27. Kf1 {[%clk 0:02:43.2]} 27... Bxg5 {[%clk 0:02:44]}
28. hxg5 {[%clk 0:02:43.1]} 28... Rxg5 {[%clk 0:02:33.2]} 29. Rad2 {[%clk
0:02:40.6]} 29... Rgd5 {[%clk 0:02:29.3]} 30. Kg2 {[%clk 0:02:28.5]} 30... e5
{[%clk 0:02:27.8]} 31. Rh1+ {[%clk 0:02:23.5]} 31... Kg6 {[%clk 0:02:26.2]} 32.
Rh4 {[%clk 0:02:19.5]} 32... Kf5 {[%clk 0:02:22.8]} 33. Kf1 {[%clk 0:02:11.4]}
33... e4 {[%clk 0:02:20.9]} 34. fxe4+ {[%clk 0:02:09.1]} 34... Nxe4 {[%clk
0:02:19.1]} 35. Rd1 {[%clk 0:02:04.6]} 35... d2 {[%clk 0:02:15.5]} 36. Rh5+
{[%clk 0:01:59.5]} 36... Kg4 {[%clk 0:02:12.4]} 37. Rxd5 {[%clk 0:01:58.6]}
37... Rxd5 {[%clk 0:02:10.7]} 38. Ke2 {[%clk 0:01:57.9]} 38... Nc3+ {[%clk
0:02:08.9]} 0-1